bitfinex-derivatives/quotes_ETHF0:USTF0_20250331
["timestamp","ask_amount","ask_price","bid_price","bid_amount"]
[1743404647116,0.00830334,1807.3,1807.2,50.29044]
[1743404647311,2.76628,1807.9,1807.2,50.29044]
[1743404647312,2.766,1808.0,1807.7,1.10655]
[1743404647512,1.10645,1807.9,1807.8,1.4179]
[1743404648111,1.10645,1807.9,1807.8,2.52441]
[1743404648308,1.10645,1807.9,1807.8,42.2179]
[1743404648515,3.2078,1808.1,1807.8,42.2179]
[1743404648707,1.10639,1808.0,1807.9,1.4179]
[1743404648910,23.81987823,1808.5,1807.9,1.4179]
[1743404649114,26.58510823,1808.5,1808.0,4.5483]
[1743404649313,1.10633,1808.2,1808.1,2.52422]
[1743404649515,1.10625,1808.3,1808.2,1.10626]
[1743404649714,16.46007823,1808.5,1808.4,1.10614]
[1743404650019,0.43467584,1809.0,1808.5,2.76522]
[1743404650210,0.43467584,1809.0,1808.9,1.10584]
[1743404650411,1.10573,1809.1,1808.9,3.856]
[1743404650613,2.57906,1809.1,1808.9,3.856]
[1743404650816,1.4733,1809.1,1808.8,3.2078]
[1743404651123,2.57904,1809.1,1808.9,4.95881]
[1743404651422,2.57904,1809.1,1808.9,4.9588]
[1743404651724,2.57904,1809.1,1808.9,1.1058]
[1743404651917,2.57904,1809.1,1809.0,3.849]
[1743404652113,2.57905,1809.1,1808.8,3.2078]
[1743404652319,2.57905,1809.1,1809.0,3.849]
[1743404652715,1.10578,1809.0,1808.9,3.846]
[1743404653024,1.4733,1809.0,1808.9,3.846]
[1743404653439,2.57908,1809.0,1808.9,3.846]
[1743404655125,1.4733,1809.0,1808.9,3.846]
[1743404655519,2.57908,1809.0,1808.9,44.646]
[1743404656016,2.57908,1809.0,1808.9,40.8]
[1743404656217,5.78688,1809.0,1808.9,40.8]
[1743404660328,4.6811,1809.0,1808.9,44.64]
[1743404660625,4.6811,1809.0,1808.9,45.74584]
[1743404660825,1.4733,1809.0,1808.9,45.74584]
[1743404661427,2.57908,1809.0,1808.9,44.64]
[1743404661729,2.57908,1809.0,1808.9,40.8]
[1743404661927,1.4733,1809.0,1808.9,45.74584]
[1743404662129,2.57908,1809.0,1808.9,44.64]
[1743404662517,0.7433,1809.4,1808.9,44.64]
[1743404662723,0.7433,1809.4,1809.0,3.6889]
[1743404663021,1.3656,1809.3,1809.2,1.10566]
[1743404663220,1.3656,1809.3,1809.2,4.94266]
[1743404663429,1.10572,1809.1,1809.0,0.00830334]
[1743404663622,1.10572,1809.1,1809.0,40.80830334]
[1743404664134,2.47132,1809.1,1809.0,40.80830334]
[1743404664623,2.47132,1809.1,1809.0,41.28940334]
[1743404665125,2.47132,1809.1,1809.0,40.80830334]
[1743404667730,1.3656,1809.1,1809.0,1.10578]
[1743404667937,1.1055,1809.5,1809.0,2.5]
[1743404668122,1.5022,1809.5,1809.4,1.10552]
[1743404668443,2.60767,1809.5,1809.4,8.19932]
[1743404668626,2.60767,1809.5,1809.4,4.99152]
[1743404668827,2.60767,1809.5,1809.4,45.79152]
[1743404669030,2.60767,1809.5,1809.4,40.8]
[1743404670329,1.10547,1809.5,1809.4,44.708]
[1743404670532,2.57907,1809.5,1809.4,44.708]
[1743404670929,1.4736,1809.5,1809.4,45.81353]
[1743404671632,5.78687,1809.5,1809.4,40.8]
[1743404672331,3.28647,1809.5,1809.4,40.8]
[1743404674431,6.49427,1809.5,1809.4,40.8]
[1743404675336,8.99427,1809.5,1809.4,40.8]
[1743404675538,6.49427,1809.5,1809.4,40.8]
[1743404683035,8.99427,1809.5,1809.4,40.8]
[1743404683237,6.49427,1809.5,1809.4,40.8]
[1743404684541,1.10553,1809.4,1809.3,0.00830334]
[1743404684742,1.1059,1808.8,1808.7,3.2078]
[1743404685540,1.1059,1808.8,1808.7,44.0078]
[1743404686046,1.10576,1809.1,1808.7,49.75246]
[1743404686245,1.1058,1809.0,1808.9,1.10584]
[1743404686446,1.1058,1809.0,1808.9,3.929]
[1743404686846,1.1058,1809.0,1808.9,44.729]
[1743404690446,4.3136,1809.0,1808.9,40.8]
[1743404691044,1.1058,1809.0,1808.9,40.8]
[1743404691447,4.3136,1809.0,1808.9,40.8]
[1743404692753,1.1058,1809.0,1808.9,40.8]
[1743404695257,1.5089,1809.1,1809.0,1.10578]
[1743404695557,1.10559,1809.3,1809.2,1.10566]
[1743404695759,1.10566,1809.2,1809.1,1.10567]
[1743404695952,1.10566,1809.2,1809.1,40.8]
[1743404696151,1.79786,1809.2,1809.1,40.8]
[1743404696353,3.18786,1809.2,1809.1,40.8]
[1743404697247,1.39,1809.2,1809.1,41.90572]
[1743404697557,2.49566,1809.2,1809.1,41.90572]
[1743404698163,1.39,1809.2,1809.1,41.90572]
[1743404699457,2.49566,1809.2,1809.1,41.2886]
[1743404700550,2.49566,1809.2,1809.1,40.8]
[1743404701354,1.39,1809.2,1809.1,41.90572]
[1743404701752,2.49566,1809.2,1809.1,41.90572]
[1743404702560,1.10566,1809.2,1809.1,41.90572]
[1743404702753,1.4648,1809.3,1809.2,1.10566]
[1743404702954,0.70890334,1809.6,1809.4,1.10553]
[1743404703163,1.4648,1809.5,1809.4,1.10553]
[1743404703457,1.4648,1809.5,1809.4,45.80253]
[1743404703659,2.57027,1809.5,1809.4,45.80253]
[1743404703959,0.00830334,1809.6,1809.5,1.10547]
[1743404704649,0.00830334,1809.6,1809.5,45.11327]
[1743404705358,0.00830334,1809.6,1809.5,45.80047]
[1743404705657,0.00830334,1809.6,1809.5,48.30047]
[1743404706253,0.00830334,1809.6,1809.5,45.80047]
[1743404706754,1.11371334,1809.6,1809.5,45.82247]
[1743404706949,0.00830334,1809.6,1809.5,45.82247]
[1743404708160,1.39370334,1809.6,1809.5,45.82247]
[1743404708957,0.00830334,1809.6,1809.5,45.82247]
[1743404710661,1.47380334,1809.6,1809.5,45.82247]
[1743404710857,1.47380334,1809.6,1809.5,45.80947]
[1743404711066,2.57921334,1809.6,1809.5,45.80947]
[1743404711561,2.57921334,1809.6,1809.5,41.90547]
[1743404711766,2.57921334,1809.6,1809.5,40.8]
[1743404712156,3.31791334,1809.6,1809.5,40.8]
[1743404712551,5.81791334,1809.6,1809.5,40.8]
[1743404713664,3.31791334,1809.6,1809.5,40.8]
[1743404713862,2.21250334,1809.6,1809.5,45.81647]
[1743404714366,1.47380334,1809.6,1809.5,45.81647]
[1743404715860,0.00830334,1809.6,1809.5,45.81647]
[1743404716966,0.00830334,1809.6,1809.5,48.31647]
[1743404717266,1.4377,1809.8,1809.7,1.10535]
[1743404717764,0.7154,1810.2,1809.7,2.5]
[1743404717963,1.4648,1810.1,1810.0,4.31297]
[1743404718169,1.4648,1810.1,1810.0,8.22197]
[1743404718370,2.56991,1810.1,1810.0,47.9168]
[1743404718571,1.4648,1810.1,1810.0,49.02197]
[1743404719465,1.4648,1810.1,1810.0,49.51027]
[1743404719670,0.00830334,1810.2,1810.1,1.10511]
[1743404719867,0.00830334,1810.2,1810.1,1.59341]
[1743404720271,0.00830334,1810.2,1810.1,42.39341]
[1743404721973,1.44460334,1810.2,1810.1,42.39341]
[1743404723577,0.7455,1810.4,1810.3,1.10498]
[1743404723770,0.7455,1810.4,1810.3,8.20278]
[1743404724178,3.2078,1810.7,1810.6,1.1048]
[1743404724373,3.2078,1810.7,1810.6,4.9958]
[1743404724670,4.31254,1810.7,1810.6,4.9958]
[1743404725278,3.2078,1810.7,1810.6,4.9958]
[1743404725571,4.31254,1810.7,1810.6,41.9048]
[1743404725776,4.31254,1810.7,1810.6,40.8]
[1743404725974,1.10474,1810.7,1810.6,41.90477]
[1743404726166,1.10474,1810.7,1810.6,40.8]
[1743404726772,2.55134,1810.7,1810.6,40.8]
[1743404727172,5.05134,1810.7,1810.6,40.8]
[1743404727974,2.55134,1810.7,1810.6,40.8]
[1743404728676,1.4466,1810.7,1810.6,40.8]
[1743404728878,2.55134,1810.7,1810.6,40.8]
[1743404729280,1.4466,1810.7,1810.6,41.9048]
[1743404729980,1.4466,1810.7,1810.6,40.8]
[1743404729981,2.55134,1810.7,1810.6,40.8]
[1743404730683,2.55134,1810.7,1810.6,41.9048]
[1743404731382,2.55134,1810.7,1810.6,40.8]
[1743404732073,2.55134,1810.7,1810.6,41.9048]
[1743404732569,1.4466,1810.7,1810.6,41.9048]
[1743404732775,1.4466,1810.7,1810.6,40.8]
[1743404733274,1.4466,1810.7,1810.6,42.222]
[1743404733478,1.4466,1810.7,1810.6,40.8]
[1743404733678,2.55134,1810.7,1810.6,40.8]
[1743404734486,1.4466,1810.7,1810.6,41.9048]
[1743404734782,1.4466,1810.7,1810.6,43.3268]
[1743404735884,2.55134,1810.7,1810.6,44.684]
[1743404736076,3.29594,1810.7,1810.6,44.684]
[1743404736676,6.50374,1810.7,1810.6,40.8]
[1743404737579,3.29594,1810.7,1810.6,41.9048]
[1743404737792,2.1912,1810.7,1810.6,40.8]
[1743404737982,3.29594,1810.7,1810.6,40.8]
[1743404739890,2.1912,1810.7,1810.6,41.9048]
[1743404740081,3.29594,1810.7,1810.6,40.8]
[1743404740482,3.29594,1810.7,1810.6,41.9048]
[1743404740779,3.29594,1810.7,1810.6,40.8]
[1743404741686,5.79594,1810.7,1810.6,40.8]
[1743404742088,3.29594,1810.7,1810.6,40.8]
[1743404745707,5.79594,1810.7,1810.6,40.8]
[1743404746095,1.10512,1810.1,1809.9,8.21428334]
[1743404746302,0.7226,1810.0,1809.9,8.21428334]
[1743404746502,2.2227,1810.0,1809.9,8.21428334]
[1743404747301,2.2227,1810.0,1809.9,49.01428334]
[1743404747509,3.32787,1810.0,1809.9,40.80830334]
[1743404747806,6.53567,1810.0,1809.9,40.80830334]
[1743404751103,5.4305,1810.0,1809.9,40.80830334]
[1743404751312,4.7079,1810.0,1809.9,41.91353334]
[1743404751616,5.81307,1810.0,1809.9,40.80830334]
[1743404751909,1.5001,1810.0,1809.9,41.91353334]
[1743404752215,1.85679,1810.2,1810.0,1.10514]
[1743404752515,3.24809,1810.2,1810.0,1.10512]
[1743404752710,4.31282,1810.3,1810.1,3.891]
[1743404752912,4.5991,1810.3,1810.2,41.90504]
[1743404753715,5.70408,1810.3,1810.2,41.90504]
[1743404753914,5.70408,1810.3,1810.2,40.8]
[1743404754114,2.49628,1810.3,1810.2,41.90504]
[1743404754616,1.3913,1810.3,1810.2,41.90504]
[1743404754817,2.49628,1810.3,1810.2,40.8]
[1743404759415,2.49628,1810.3,1810.2,42.2168]
[1743404759624,2.49628,1810.3,1810.2,40.8]
[1743404760111,2.49628,1810.3,1810.2,42.1779]
[1743404760606,5.70408,1810.3,1810.2,40.8]
[1743404761011,8.20408,1810.3,1810.2,40.8]
[1743404761211,5.70408,1810.3,1810.2,40.8]
[1743404764415,2.49628,1810.3,1810.2,40.8]
[1743404765011,8.20408,1810.3,1810.2,40.8]
[1743404765215,1.10517,1810.0,1809.9,0.00830334]
[1743404765510,4.31297,1810.0,1809.9,0.00830334]
[1743404766017,5.79457,1810.0,1809.9,0.00830334]
[1743404766223,5.79457,1810.0,1809.9,40.80830334]
[1743404772420,1.4816,1810.0,1809.9,45.79053334]
[1743404772621,2.76232,1810.4,1810.3,1.10498]
[1743404772622,3.2078,1810.4,1810.3,1.10498]
[1743404773222,4.31272,1810.4,1810.3,42.1848]
[1743404774421,4.31272,1810.4,1810.3,40.8]
[1743404774622,5.02972,1810.4,1810.3,40.8]
[1743404776526,3.2078,1810.4,1810.3,40.8]
[1743404776728,3.2078,1810.4,1810.3,45.78198]
[1743404776920,2.6172,1810.5,1810.3,45.78198]
[1743404777113,2.6172,1810.5,1810.4,1.408]
[1743404777722,1.5123,1810.5,1810.4,43.31292]
[1743404777929,1.5123,1810.5,1810.4,43.71202]
[1743404778427,2.61716,1810.5,1810.4,43.71202]
[1743404778620,2.61716,1810.5,1810.4,42.6071]
[1743404778820,1.5123,1810.5,1810.4,43.71202]
[1743404779020,2.61716,1810.5,1810.4,42.6071]
[1743404779431,1.5123,1810.5,1810.4,43.71202]
[1743404779625,2.61716,1810.5,1810.4,43.71202]
[1743404780432,1.5123,1810.5,1810.4,43.71202]
[1743404781324,2.61716,1810.5,1810.4,43.71202]
[1743404781524,2.61716,1810.5,1810.4,42.6071]
[1743404782326,1.5123,1810.5,1810.4,43.71202]
[1743404782531,2.61716,1810.5,1810.4,43.71202]
[1743404782725,2.61716,1810.5,1810.4,42.208]
[1743404782926,5.82496,1810.5,1810.4,40.8]
[1743404785325,2.61716,1810.5,1810.4,40.8]
[1743404785926,1.5123,1810.5,1810.4,40.8]
[1743404786227,1.5123,1810.5,1810.4,43.31102]
[1743404786630,4.31266,1810.5,1810.4,40.8]
[1743404787037,5.77706,1810.5,1810.4,40.8]
[1743404792532,6.47906,1810.5,1810.4,40.8]
[1743404794143,3.27126,1810.5,1810.4,40.8]
[1743404794541,3.27126,1810.5,1810.4,42.2283]
[1743404795342,6.47906,1810.5,1810.4,40.8]
[1743404796239,6.47906,1810.5,1810.4,42.2283]
[1743404796445,6.47906,1810.5,1810.4,40.8]
[1743404799252,12.82306,1810.5,1810.4,17.65258234]
[1743404799443,1.10517,1810.0,1809.9,0.00830334]
[1743404799745,1.10552,1809.5,1809.4,3.86]
[1743404800152,1.10559,1809.3,1809.2,1.7695]
[1743404800454,1.10559,1809.3,1809.2,40.8]
[1743404801151,1.10559,1809.3,1809.2,42.1711]
[1743404802455,0.00830334,1809.4,1809.3,1.10559]
[1743404802650,0.00830334,1809.4,1809.3,6.44019]
[1743404803047,0.00830334,1809.4,1809.3,49.74019]
[1743404803248,1.1053,1809.8,1809.6,1.10541]
[1743404803449,2.1352,1809.9,1809.6,4.98136]
[1743404803661,1.10521,1810.0,1809.7,1.4626]
[1743404803846,1.10523,1809.9,1809.8,1.10524]
[1743404804247,1.10521,1810.0,1809.8,1.10524]
[1743404804448,1.10521,1810.0,1809.9,3.879]
[1743404804650,1.10521,1810.0,1809.9,46.1416]
[1743404805246,1.4263,1810.1,1809.9,47.2468]
[1743404805448,1.10515,1810.1,1810.0,1.3631]
[1743404806056,1.10515,1810.1,1810.0,42.1631]
[1743404806254,2.53205,1810.1,1810.0,42.1631]
[1743404806563,2.53205,1810.1,1810.0,40.8]
[1743404808154,5.03205,1810.1,1810.0,40.8]
[1743404809562,1.10553,1809.4,1809.3,5.3038]
[1743404810054,5.4222,1809.5,1809.3,5.3038]
[1743404810261,2.58923,1809.4,1809.3,5.3038]
[1743404810463,2.58923,1809.4,1809.3,42.2218]
[1743404810657,2.58923,1809.4,1809.3,40.8]
[1743404811961,1.10566,1809.2,1809.1,0.00830334]
[1743404812160,1.10602,1808.6,1808.5,1.4095]
[1743404812461,1.10602,1808.6,1808.5,4.6173]
[1743404812667,1.10602,1808.6,1808.5,1.4095]
[1743404812858,1.10602,1808.6,1808.5,42.2095]
[1743404816661,4.31382,1808.6,1808.5,42.2095]
[1743404819667,1.10602,1808.6,1808.5,42.2095]
[1743404820066,1.10602,1808.6,1808.5,40.8]
[1743404820662,4.31382,1808.6,1808.5,40.8]
[1743404821365,1.4608,1808.7,1808.5,40.8]
[1743404821669,1.10596,1808.7,1808.6,3.858]
[1743404822172,2.51744,1808.8,1808.6,45.76402]
[1743404822362,2.51744,1808.8,1808.7,1.4584]
[1743404822557,1.4115,1808.8,1808.7,2.56436]
[1743404822870,0.00830334,1809.3,1809.0,1.10574]
[1743404823057,1.10572,1809.1,1809.0,4.96574]
[1743404823262,1.10572,1809.1,1809.0,3.86]
[1743404823669,1.10572,1809.1,1809.0,44.66]
[1743404824169,4.18379334,1809.3,1809.2,1.10566]
[1743404824170,0.00830334,1809.3,1809.2,1.10566]
[1743404824667,1.10566,1809.2,1809.1,3.867]
[1743404824867,1.10566,1809.2,1809.1,44.667]
[1743404825064,1.40320334,1809.3,1809.1,44.667]
[1743404825267,1.10566,1809.2,1809.1,44.667]
[1743404825669,4.31346,1809.2,1809.1,40.8]
[1743404825857,1.10596,1808.7,1808.6,7.0848]
[1743404826261,1.10596,1808.7,1808.6,3.877]
[1743404826977,1.10596,1808.7,1808.6,40.8]
[1743404827472,2.53666,1808.7,1808.6,40.8]
[1743404828073,1.10594,1808.8,1808.6,41.90602]
[1743404828665,1.4307,1808.9,1808.7,3.878]
[1743404828866,1.10591,1808.8,1808.7,3.878]
[1743404829471,1.10591,1808.8,1808.7,44.678]
[1743404830066,1.4307,1808.9,1808.7,44.678]
[1743404830271,1.4307,1808.9,1808.7,47.8858]
[1743404830466,1.4307,1808.9,1808.8,1.1059]
[1743404830671,2.53656,1808.9,1808.7,8.19172]
[1743404830870,2.53658,1808.9,1808.7,8.19174]
[1743404831571,2.53658,1808.9,1808.8,1.1059]
[1743404831768,1.1059,1808.8,1808.7,3.2078]
[1743404832069,2.5561,1808.8,1808.7,7.0788]
[1743404832274,1.10586,1808.9,1808.8,1.10589]
[1743404832474,1.1059,1808.8,1808.7,7.0788]
[1743404832977,1.1059,1808.8,1808.7,8.18476]
[1743404833268,0.7148,1809.2,1808.9,1.1058]
[1743404833467,1.4215,1809.2,1809.1,1.10572]
[1743404833773,1.11392334,1809.3,1809.2,1.10566]
[1743404833975,1.10566,1809.2,1809.1,4.31347]
[1743404834166,1.11395334,1809.3,1809.2,41.90566]
[1743404834466,0.00830334,1809.3,1809.2,41.90566]
[1743404834865,0.00830334,1809.3,1809.2,41.91326]
[1743404836361,1.11389334,1809.3,1809.2,40.8]
[1743404836765,5.06159334,1809.3,1809.2,40.8]
[1743404838776,1.85379334,1809.3,1809.2,40.8]
[1743404839368,5.06159334,1809.3,1809.2,40.8]
[1743404839779,7.56159334,1809.3,1809.2,40.8]
[1743404840278,8.93249334,1809.3,1809.2,40.8]
[1743404842274,6.43249334,1809.3,1809.2,40.8]
[1743404842472,5.32690334,1809.3,1809.2,40.8]
[1743404842773,6.43249334,1809.3,1809.2,40.8]
[1743404843286,3.22469334,1809.3,1809.2,40.8]
[1743404843576,6.43249334,1809.3,1809.2,40.8]
[1743404846081,3.22469334,1809.3,1809.2,40.8]
[1743404846882,6.43249334,1809.3,1809.2,40.8]
[1743404852783,8.93249334,1809.3,1809.2,40.8]
[1743404854188,6.43249334,1809.3,1809.2,40.8]
[1743404856981,10.29949334,1809.3,1809.2,40.8]
[1743404859784,12.79949334,1809.3,1809.2,40.8]
[1743404859990,1.10596,1808.7,1808.6,3.2078]
[1743404860782,2.59376,1808.7,1808.6,3.2078]
[1743404860985,2.59376,1808.7,1808.6,44.0078]
[1743404861793,2.59376,1808.7,1808.6,45.4195]
[1743404862386,1.10596,1808.7,1808.6,45.4195]
[1743404863502,1.10596,1808.7,1808.6,40.8]
[1743404863688,2.49846,1808.7,1808.6,40.8]
[1743404863889,7.83836,1808.7,1808.6,40.8]
[1743404865994,7.83836,1808.7,1808.4,0.00830334]
[1743404865995,1.10608,1808.5,1808.4,0.00830334]
[1743404866298,4.31388,1808.5,1808.4,0.00830334]
[1743404866791,1.10639,1808.0,1807.9,1.4442]
[1743404866993,1.10639,1808.0,1807.9,40.8]
[1743404867189,4.96639,1808.0,1807.9,40.8]
[1743404867395,6.34499,1808.0,1807.9,40.8]
[1743404868391,1.10645,1807.9,1807.8,0.00830334]
[1743404868596,5.69285,1807.9,1807.8,0.00830334]
[1743404868898,1.10694,1807.1,1807.0,0.4002]
[1743404869284,5.97494,1807.3,1807.0,40.8]
[1743404869597,1.10694,1807.1,1807.0,40.8]
[1743404870490,1.10694,1807.1,1807.0,42.2657]
[1743404870988,1.10694,1807.1,1807.0,40.8]
[1743404871690,4.31474,1807.1,1807.0,40.8]
[1743404872086,5.04464,1807.1,1807.0,40.8]
[1743404878605,1.10694,1807.1,1807.0,42.2774]
[1743404880805,4.31474,1807.1,1807.0,42.2774]
[1743404881007,4.31474,1807.1,1807.0,40.8]
[1743404881506,4.31474,1807.1,1807.0,42.2774]
[1743404881999,3.2078,1807.4,1807.0,44.7774]
[1743404882201,3.2078,1807.4,1807.1,0.0171]
[1743404882406,1.10688,1807.2,1807.1,0.0171]
[1743404882704,1.10688,1807.2,1807.1,40.8]
[1743404884408,1.13382635,1807.2,1807.1,40.8]
[1743404884608,4.34162635,1807.2,1807.1,40.8]
[1743404885604,1.13382635,1807.2,1807.1,40.8]
[1743404885807,0.02694635,1807.2,1807.1,40.8]
[1743404886000,1.13382635,1807.2,1807.1,40.8]
[1743404886402,0.02694635,1807.2,1807.1,40.8]
[1743404886603,1.13382635,1807.2,1807.1,40.8]
[1743404888211,1.13382635,1807.2,1807.1,41.90694]
[1743404888510,0.02694635,1807.2,1807.1,41.90694]
[1743404888809,0.02694635,1807.2,1807.1,44.40694]
[1743404889010,0.02694635,1807.2,1807.1,44.80854]
[1743404889211,0.02694635,1807.2,1807.1,44.82574]
[1743404889605,0.02694635,1807.2,1807.1,41.2188]
[1743404889803,1.13382635,1807.2,1807.1,41.2188]
[1743404891011,1.13382635,1807.2,1807.1,40.8]
[1743404891212,2.53902635,1807.2,1807.1,40.8]
[1743404893516,5.74682635,1807.2,1807.1,40.8]
[1743404895611,9.63382635,1807.2,1807.1,40.8]
[1743404895812,12.13382635,1807.2,1807.1,40.8]
[1743404896306,1.107,1807.0,1806.9,0.00830334]
[1743404896508,1.107,1807.0,1806.4,3.886]
[1743404896509,1.10731,1806.5,1806.4,1.417]
[1743404896811,1.16122646,1806.5,1806.4,1.417]
[1743404897213,1.55511646,1806.5,1806.4,40.8]
[1743404897418,2.66242646,1806.5,1806.4,40.8]
[1743404899908,0.05391646,1806.5,1806.4,40.8]
[1743404900207,0.05391646,1806.5,1806.4,42.2524]
[1743404900409,1.16122646,1806.5,1806.4,42.2524]
[1743404901016,0.05391646,1806.5,1806.4,45.85977]
[1743404901311,0.05391646,1806.5,1806.4,49.06757]
[1743404901815,1.16122646,1806.5,1806.4,42.2524]
[1743404903107,2.55182646,1806.5,1806.4,42.2524]
[1743404905706,2.55182646,1806.5,1806.4,40.8]
[1743404906615,2.55182646,1806.5,1806.4,41.90737]
[1743404906908,2.55182646,1806.5,1806.4,42.2961]
[1743404908015,1.44451646,1806.5,1806.4,43.40347]
[1743404908519,0.05391646,1806.5,1806.4,43.40347]
[1743404909013,2.52832646,1806.5,1806.4,42.2961]
[1743404909409,1.42101646,1806.5,1806.4,43.40347]
[1743404909714,2.52832646,1806.5,1806.4,42.2961]
[1743404910011,2.52832646,1806.5,1806.4,41.90737]
[1743404910212,1.42101646,1806.5,1806.4,41.90737]
[1743404911409,2.52832646,1806.5,1806.4,40.8]
[1743404911610,3.24232646,1806.5,1806.4,40.8]
[1743404913208,5.74232646,1806.5,1806.4,40.8]
[1743404914313,1.10737,1806.4,1806.3,0.00830334]
[1743404914510,1.10761,1806.0,1805.9,1.3693]
[1743404915312,0.05391646,1806.0,1805.9,43.27698]
[1743404915720,1.56571646,1806.0,1805.9,43.27698]
[1743404917315,2.67332646,1806.0,1805.9,43.27698]
[1743404917516,2.67332646,1806.0,1805.9,42.1693]
[1743404918014,0.05391646,1806.0,1805.9,43.27698]
[1743404918216,1.16152646,1806.0,1805.9,43.27698]
[1743404918603,1.16152646,1806.0,1805.9,42.1693]
[1743404919815,4.36932646,1806.0,1805.9,40.8]
[1743404920009,5.11602646,1806.0,1805.9,40.8]
[1743404920211,5.56258364,1806.0,1805.9,40.8]
[1743404920416,5.11602646,1806.0,1805.9,40.8]
[1743404920718,6.52122646,1806.0,1805.9,40.8]
[1743404923326,9.02122646,1806.0,1805.9,40.8]
[1743404923820,1.10768,1805.9,1805.8,0.00830334]
[1743404924022,1.10792,1805.5,1805.4,1.5144]
[1743404924222,1.16183646,1805.5,1805.4,1.5144]
[1743404924719,1.16183646,1805.5,1805.4,42.3144]
[1743404924924,2.54503646,1805.5,1805.4,42.3144]
[1743404925121,2.54503646,1805.5,1805.4,40.8]
[1743404927323,6.44923646,1805.5,1805.4,40.8]
[1743404930633,3.24143646,1805.5,1805.4,40.8]
[1743404930835,3.24143646,1805.5,1805.4,42.2199]
[1743404932743,2.54503646,1805.5,1805.4,42.2199]
[1743404932947,5.75283646,1805.5,1805.4,42.2199]
[1743404933643,1.16183646,1805.5,1805.4,42.2199]
[1743404934037,2.52753646,1805.5,1805.4,42.2199]
[1743404936548,1.16183646,1805.5,1805.4,42.2199]
[1743404936846,1.16183646,1805.5,1805.4,43.32788]
[1743404937445,1.16183646,1805.5,1805.4,42.2199]
[1743404939448,1.16183646,1805.5,1805.4,43.32788]
[1743404939747,1.16183646,1805.5,1805.4,42.2199]
[1743404939949,1.16183646,1805.5,1805.4,43.32788]
[1743404940851,1.16183646,1805.5,1805.4,42.2199]
[1743404941750,0.05391646,1805.5,1805.4,43.32788]
[1743404942949,1.16183646,1805.5,1805.4,42.2199]
[1743404943150,2.56583646,1805.5,1805.4,40.8]
[1743404943354,4.02203646,1805.5,1805.4,40.8]
[1743404947544,7.22983646,1805.5,1805.4,40.8]
[1743404947754,13.54083646,1805.5,1805.4,40.8]
[1743404947952,1.10839,1804.8,1804.5,1.10849]
[1743404948252,3.2078,1804.9,1804.5,2.56639]
[1743404948448,0.05391646,1804.7,1804.5,1.4579]
[1743404948757,1.10847,1804.6,1804.5,1.4579]
[1743404948958,2.62347,1804.6,1804.5,1.4579]
[1743404949455,2.67738646,1804.6,1804.5,42.2579]
[1743404949644,3.11296235,1804.6,1804.5,40.8]
[1743404949849,5.61296235,1804.6,1804.5,40.8]
[1743404950047,2.77174,1804.3,1803.7,0.4454]
[1743404950250,1.10893,1803.9,1803.8,1.4282]
[1743404950553,3.26171646,1803.9,1803.5,3.2078]
[1743404950859,1.10903,1803.7,1803.6,1.4282]
[1743404951158,4.31683,1803.7,1803.6,40.8]
[1743404951350,5.01923,1803.7,1803.6,40.8]
[1743404951555,6.58814646,1803.7,1803.6,40.8]
[1743404953454,3.38034646,1803.7,1803.6,40.8]
[1743404953860,6.58814646,1803.7,1803.6,40.8]
[1743404954657,17.39036646,1803.7,1802.8,3.2078]
[1743404954853,1.10952,1802.9,1802.8,4.7248]
[1743404955161,1.10952,1802.9,1802.8,3.2078]
[1743404955359,2.77401,1802.8,1802.2,3.2078]
[1743404955655,2.77401,1802.8,1801.7,0.5552]
[1743404955656,1.1102,1801.8,1801.7,3.2078]
[1743404955861,1.11024,1801.8,1801.5,3.2078]
[1743404956048,2.77534,1801.9,1801.5,3.2078]
[1743404956252,2.77534,1801.9,1801.3,0.4202]
[1743404956253,1.1103,1801.7,1801.4,1.11041]
[1743404956555,0.05391646,1801.6,1801.5,1.11038]
[1743404956968,0.05391646,1801.6,1801.4,3.2078]
[1743404957257,0.05391646,1801.6,1801.5,41.91038]
[1743404957457,0.05391646,1801.6,1801.5,42.317]
[1743404958766,0.05391646,1801.6,1801.5,45.92738]
[1743404959166,3.9141,1802.3,1801.5,45.92738]
[1743404959463,4.15633,1802.2,1801.7,3.2078]
[1743404959663,1.3814,1802.2,1801.7,9.78694]
[1743404959856,1.11004,1802.1,1801.9,4.31791]
[1743404960056,1.11007,1802.1,1802.0,1.5139]
[1743404960360,2.77449,1802.5,1802.2,1.10991]
[1743404960361,1.10978,1802.5,1802.2,1.10991]
[1743404960661,6.72887,1802.7,1802.4,40.8]
[1743404960856,1.11808663,1802.5,1802.4,40.8]
[1743404961252,0.00832663,1802.5,1802.4,44.776]
[1743404961764,0.00832663,1802.5,1802.4,45.88583]
[1743404961962,1.11808663,1802.5,1802.4,40.8]
[1743404962460,1.11007,1802.0,1801.9,0.00832663]
[1743404963461,1.11007,1802.0,1801.9,40.80832663]
[1743404963960,1.10996,1802.2,1801.9,44.01612663]
[1743404964155,2.52356,1802.2,1802.0,1.4905]
[1743404964356,1.4136,1802.2,1802.0,2.60055]
[1743404964552,1.4136,1802.2,1802.0,1.4905]
[1743404964752,1.80388,1802.4,1802.0,5.5405]
[1743404964956,1.80388,1802.4,1802.1,1.11001]
[1743404964957,3.21748,1802.4,1802.1,1.11001]